[Event "GER-ch Youth-ODJM 2022 B"]
[Site "Willingen"]
[Date "2022.06.09"]
[Round "7.5"]
[White "Stülcken, Philipp"]
[Black "Ruddat, Jarne"]
[Result "1/2-1/2"]
[ECO "D85"]
[WhiteElo "1513"]
[BlackElo "1415"]
[Annotator "NA RC COMBH"]
[PlyCount "82"]
[EventDate "2022.06.05"]
[EventType "swiss"]
[EventRounds "9"]
[EventCountry "GER"]
[SourceTitle "playchess.com"]
[Source "ChessBase"]
[SourceQuality "1"]
[TimeControl "40/4500+30:900+30"]

1. Nf3 {[%emt 0:00:00]} Nf6 {[%emt 0:00:00]} 2. c4 {[%emt 0:00:00]} g6 {[%emt 0:00:00]} 3. Nc3 {[%emt 0:00:00]} Bg7 {[%emt 0:00:00]} 4. d4 {[%emt 0:00:00]} d5 {[%emt 0:00:00]} 5. cxd5 {[%emt 0:00:00]} Nxd5 {[%emt 0:00:00]} 6. e4 {[%emt 0:00:00]} Nxc3 {[%emt 0:00:00]} 7. bxc3 {[%emt 0:00:00]} O-O {[%emt 0:00:00]} 8. Bc4 {[%emt 0:00:00]} c5 {[%emt 0:00:00]} 9. Rb1 {[%emt 0:04:28]} Nc6 {[%emt 0:00:00]} 10. Be3 {[%emt 0:04:40]} a6 {[%emt 0:00:00]} 11. O-O {[%emt 0:02:13]} Bg4 {[%emt 0:00:00]} 12. Be2 {[%emt 0:25:40]} Bxf3 {[%emt 0:00:00]} 13. Bxf3 {[%emt 0:00:16]} Qc7 {[%emt 0:00:00]} 14. Qc2 {[%emt 0:04:54]} cxd4 {[%emt 0:01:11]} 15. cxd4 {[%emt 0:00:21]} Rac8 {[%emt 0:00:24]} 16. Qa4 {[%emt 0:06:28]} Rfd8 {[%emt 0:05:08]} 17. d5 {[%emt 0:02:10]} Ne5 {[%emt 0:01:13]} 18. Rfc1 {[%emt 0:09:30]} Nxf3+ {[%emt 0:01:04]} 19. gxf3 {[%emt 0:00:07]} Qb8 {[%emt 0:00:21]} 20. Rxc8 {[%emt 0:05:02]} Qxc8 {[%emt 0:03:28]} 21. Qb4 {[%emt 0:01:01]} Rd7 {[%emt 0:01:49]} 22. Rc1 {[%emt 0:01:09]} Rc7 {[%emt 0:00:09]} 23. Rxc7 {[%emt 0:02:05]} Qxc7 {[%emt 0:00:09]} 24. f4 {[%emt 0:01:16]} Bc3 {[%emt 0:03:20]} 25. Qa4 {[%emt 0:02:46]} Qc8 {[%emt 0:02:10]} 26. Qa3 {[%emt 0:02:53]} Bf6 {[%emt 0:00:20]} 27. e5 {[%emt 0:00:44]} Bh4 {[%emt 0:00:36]} 28. d6 {[%emt 0:01:21]} Qg4+ {[%emt 0:00:26]} 29. Kf1 {[%emt 0:01:29]} Qd1+ {[%emt 0:03:05]} 30. Kg2 {[%emt 0:00:09]} exd6 {[%emt 0:00:11]} 31. Qxd6 {[%emt 0:04:48]} Qxd6 {[%emt 0:00:09]} 32. exd6 {[%emt 0:00:04]} Kf8 {[%emt 0:00:03]} 33. Kf3 {[%emt 0:00:17]} Ke8 {[%emt 0:00:13]} 34. Ke4 {[%emt 0:00:11]} Kd7 {[%emt 0:00:11]} 35. Kd5 {[%emt 0:00:11]} Bd8 {[%emt 0:00:57]} 36. a4 {[%emt 0:05:37]} f5 {[%emt 0:00:15]} 37. f3 {[%emt 0:00:44]} Ba5 {[%emt 0:00:20]} 38. h3 {[%emt 0:00:34]} Bb4 {[%emt 0:01:02]} 39. Bc5 {[%emt 0:00:40]} Bd2 {[%emt 0:07:21]} 40. Ke5 {[%emt 0:00:21]} Bc3+ {[%emt 0:00:08]} 41. Kd5 {[%emt 0:15:13]} Bb4 1/2-1/2

[Event "GER-ch Youth-ODJM 2022 B"]
[Site "Willingen"]
[Date "2022.06.09"]
[Round "7.6"]
[White "Abou Wally, Adrian"]
[Black "John, Niklas"]
[Result "1/2-1/2"]
[ECO "B24"]
[WhiteElo "1601"]
[BlackElo "1563"]
[Annotator "NA RC COMBH"]
[PlyCount "137"]
[EventDate "2022.06.05"]
[EventType "swiss"]
[EventRounds "9"]
[EventCountry "GER"]
[SourceTitle "playchess.com"]
[Source "ChessBase"]
[SourceQuality "1"]
[TimeControl "40/4500+30:900+30"]

1. e4 {[%emt 0:00:00]} c5 {[%emt 0:00:00]} 2. Nc3 {[%emt 0:00:00]} Nc6 {[%emt 0:00:00]} 3. Bb5 {[%emt 0:00:00]} Nd4 {[%emt 0:00:00]} 4. a4 {[%emt 0:00:00]} a6 {[%emt 0:00:00]} 5. Bc4 {[%emt 0:00:00]} e6 {[%emt 0:00:00]} 6. Nge2 {[%emt 0:00:00]} Qc7 {[%emt 0:00:00]} 7. O-O {[%emt 0:00:00]} Nf6 {[%emt 0:00:00]} 8. f4 {[%emt 0:11:25]} d6 {[%emt 0:00:44]} 9. d3 {[%emt 0:06:29]} Be7 {[%emt 0:02:28]} 10. Ng3 {[%emt 0:14:44]} O-O {[%emt 0:08:07]} 11. f5 {[%emt 0:05:01]} exf5 {[%emt 0:06:59]} 12. Nxf5 {[%emt 0:04:06]} Nxf5 {[%emt 0:01:43]} 13. exf5 {[%emt 0:00:06]} b6 {[%emt 0:08:47]} 14. Nd5 {[%emt 0:10:58]} Nxd5 {[%emt 0:04:09]} 15. Bxd5 {[%emt 0:00:07]} Bb7 {[%emt 0:01:25]} 16. Bxb7 {[%emt 0:00:22]} Qxb7 {[%emt 0:00:07]} 17. f6 {[%emt 0:11:11]} Bxf6 {[%emt 0:23:39]} 18. Rxf6 {[%emt 0:00:08]} gxf6 {[%emt 0:00:13]} 19. Bh6 {[%emt 0:00:25]} Kh8 {[%emt 0:01:36]} 20. Qf1 {[%emt 0:02:39]} f5 {[%emt 0:13:01]} 21. Qxf5 {[%emt 0:06:07]} f6 {[%emt 0:00:59]} 22. Bxf8 {[%emt 0:00:28]} Rxf8 {[%emt 0:00:18]} 23. Re1 {[%emt 0:00:33]} Kg7 {[%emt 0:07:31]} 24. Qe6 {[%emt 0:04:29]} Qc7 {[%emt 0:03:42]} 25. Re3 {[%emt 0:01:18]} Qd8 {[%emt 0:01:42]} 26. c4 {[%emt 0:02:36]} Rf7 {[%emt 0:00:46]} 27. Qe8 {[%emt 0:02:46]} Qxe8 {[%emt 0:00:28]} 28. Rxe8 {[%emt 0:00:04]} Rd7 {[%emt 0:00:32]} 29. Rb8 {[%emt 0:01:54]} d5 {[%emt 0:00:25]} 30. Rxb6 {[%emt 0:00:17]} dxc4 {[%emt 0:00:06]} 31. dxc4 {[%emt 0:00:06]} Rd4 {[%emt 0:00:27]} 32. b3 {[%emt 0:00:35]} Rd3 {[%emt 0:00:52]} 33. Kf2 {[%emt 0:00:08]} Rd2+ {[%emt 0:00:39]} 34. Kf3 {[%emt 0:00:14]} Rc2 {[%emt 0:00:12]} 35. h4 {[%emt 0:02:28]} h5 {[%emt 0:00:28]} 36. g3 {[%emt 0:00:18]} Kg6 {[%emt 0:00:37]} 37. a5 {[%emt 0:01:23]} Kf5 {[%emt 0:00:34]} 38. Rxa6 {[%emt 0:00:33]} Rc3+ {[%emt 0:00:20]} 39. Kf2 {[%emt 0:00:04]} Rxb3 {[%emt 0:00:46]} 40. Rc6 {[%emt 0:00:37]} Rb2+ {[%emt 0:00:34]} 41. Kf1 {[%emt 0:00:00]} Kg4 {[%emt 0:00:00]} 42. Rxc5 {[%emt 0:10:58]} f5 {[%emt 0:06:35]} 43. Rc8 {[%emt 0:05:07]} Ra2 {[%emt 0:05:53]} 44. Ra8 {[%emt 0:00:35]} Rc2 {[%emt 0:00:46]} 45. a6 {[%emt 0:00:34]} Kf3 {[%emt 0:03:23]} 46. Ke1 {[%emt 0:00:44]} Rxc4 {[%emt 0:01:12]} 47. a7 {[%emt 0:00:42]} Ra4 {[%emt 0:00:43]} 48. Kd2 {[%emt 0:00:22]} Ra3 {[%emt 0:00:15]} 49. Kc2 {[%emt 0:00:36]} Kf2 {[%emt 0:00:34]} 50. Kb2 {[%emt 0:00:31]} Ra6 {[%emt 0:00:38]} 51. Kc3 {[%emt 0:00:17]} Kf3 {[%emt 0:00:28]} 52. Kd4 {[%emt 0:00:15]} Ra5 {[%emt 0:00:27]} 53. Kc4 {[%emt 0:00:20]} Kf2 {[%emt 0:00:35]} 54. Kb4 {[%emt 0:00:08]} Ra1 {[%emt 0:00:11]} 55. Kc5 {[%emt 0:00:29]} Ra5+ {[%emt 0:00:43]} 56. Kd6 {[%emt 0:00:59]} Kf3 {[%emt 0:00:33]} 57. Ke6 {[%emt 0:00:12]} Kf2 {[%emt 0:00:22]} 58. Kf6 {[%emt 0:00:13]} Kf3 {[%emt 0:00:40]} 59. Ke7 {[%emt 0:01:42]} Kf2 {[%emt 0:00:25]} 60. Ke6 {[%emt 0:00:29]} Kf3 {[%emt 0:00:21]} 61. Kf6 {[%emt 0:00:11]} Kf2 {[%emt 0:00:17]} 62. Kg5 {[%emt 0:00:37]} Kg2 {[%emt 0:01:00]} 63. Kf4 {[%emt 0:00:44]} Kf2 {[%emt 0:00:29]} 64. Rh8 {[%emt 0:00:35]} Rxa7 {[%emt 0:00:31]} 65. Kxf5 {[%emt 0:00:13]} Ra5+ {[%emt 0:00:32]} 66. Kg6 {[%emt 0:00:23]} Kxg3 {[%emt 0:00:27]} 67. Rxh5 {[%emt 0:00:20]} Ra4 {[%emt 0:00:32]} 68. Kg5 {[%emt 0:00:33]} Ra5+ {[%emt 0:00:14]} 69. Kh6 {[%emt 0:00:34]} 1/2-1/2

[Event "GER-ch Youth-ODJM 2022 B"]
[Site "Willingen"]
[Date "2022.06.09"]
[Round "7.7"]
[White "Wechtenbruch, Jamie"]
[Black "von Jan, Lena"]
[Result "0-1"]
[ECO "C44"]
[WhiteElo "1489"]
[BlackElo "1634"]
[Annotator "NA RC COMBH"]
[PlyCount "110"]
[EventDate "2022.06.05"]
[EventType "swiss"]
[EventRounds "9"]
[EventCountry "GER"]
[SourceTitle "playchess.com"]
[Source "ChessBase"]
[SourceQuality "1"]
[TimeControl "40/4500+30:900+30"]

1. e4 {[%emt 0:00:00]} e5 {[%emt 0:00:00]} 2. Nf3 {[%emt 0:00:00]} Nc6 {[%emt 0:00:00]} 3. d4 {[%emt 0:00:00]} exd4 {[%emt 0:00:00]} 4. Nxd4 {[%emt 0:00:00]} Nf6 {[%emt 0:00:00]} 5. Nxc6 {[%emt 0:00:00]} bxc6 {[%emt 0:00:00]} 6. Bd3 {[%emt 0:00:00]} Be7 {[%emt 0:00:00]} 7. a3 {[%emt 0:05:21]} d5 {[%emt 0:00:00]} 8. Nc3 {[%emt 0:09:42]} O-O {[%emt 0:03:46]} 9. O-O {[%emt 0:05:05]} Bg4 {[%emt 0:08:08]} 10. f3 {[%emt 0:04:30]} Bc5+ {[%emt 0:01:15]} 11. Kh1 {[%emt 0:02:53]} Bh5 {[%emt 0:04:20]} 12. Bg5 {[%emt 0:02:26]} Be7 {[%emt 0:10:51]} 13. Rb1 {[%emt 0:04:49]} h6 {[%emt 0:04:21]} 14. Bh4 {[%emt 0:09:04]} Rb8 {[%emt 0:10:42]} 15. b4 {[%emt 0:18:29]} Kh8 {[%emt 0:11:15]} 16. Ne2 {[%emt 0:05:42]} dxe4 {[%emt 0:05:50]} 17. Bxf6 {[%emt 0:04:48]} exd3 {[%emt 0:06:53]} 18. Bxe7 {[%emt 0:00:22]} Qxe7 {[%emt 0:00:08]} 19. Qxd3 {[%emt 0:00:08]} Bg6 {[%emt 0:00:50]} 20. Qc4 {[%emt 0:00:22]} Rb6 {[%emt 0:04:29]} 21. Rbc1 {[%emt 0:00:34]} Rd8 {[%emt 0:03:41]} 22. c3 {[%emt 0:01:23]} Bd3 {[%emt 0:00:43]} 23. Qa2 {[%emt 0:00:50]} Qxe2 {[%emt 0:01:00]} 24. Qxe2 {[%emt 0:00:32]} Bxe2 {[%emt 0:00:18]} 25. Rfe1 {[%emt 0:00:04]} Bc4 {[%emt 0:00:30]} 26. Re7 {[%emt 0:00:50]} Rb7 {[%emt 0:01:24]} 27. Kg1 {[%emt 0:00:06]} Be6 {[%emt 0:00:45]} 28. Kf2 {[%emt 0:00:16]} Kg8 {[%emt 0:00:27]} 29. Re1 {[%emt 0:00:15]} Kf8 {[%emt 0:00:37]} 30. R7xe6 {[%emt 0:00:09]} fxe6 {[%emt 0:00:11]} 31. Rxe6 {[%emt 0:00:03]} Rd2+ {[%emt 0:01:51]} 32. Kg3 Ra2 {[%emt 0:00:45]} 33. Rxc6 {[%emt 0:00:48]} Rxa3 {[%emt 0:00:08]} 34. h4 {[%emt 0:00:20]} a5 {[%emt 0:01:44]} 35. bxa5 {[%emt 0:00:05]} Rxa5 {[%emt 0:00:12]} 36. Kg4 {[%emt 0:00:11]} Ra2 {[%emt 0:01:41]} 37. g3 {[%emt 0:00:24]} Kf7 {[%emt 0:01:02]} 38. f4 {[%emt 0:04:06]} Re2 {[%emt 0:00:41]} 39. Kh5 {[%emt 0:00:48]} Re7 {[%emt 0:01:47]} 40. g4 {[%emt 0:01:44]} Rb6 {[%emt 0:01:19]} 41. Rc5 {[%emt 0:15:18]} c6 {[%emt 0:00:00]} 42. Rf5+ {[%emt 0:00:00]} Kg8 {[%emt 0:00:00]} 43. c4 {[%emt 0:00:00]} Rf7 {[%emt 0:00:00]} 44. Re5 {[%emt 0:00:00]} Rxf4 {[%emt 0:00:00]} 45. c5 {[%emt 0:00:00]} Rb5 {[%emt 0:03:00]} 46. g5 {[%emt 0:00:00]} hxg5 {[%emt 0:02:11]} 47. hxg5 {[%emt 0:00:00]} Kf7 {[%emt 0:02:27]} 48. g6+ {[%emt 0:00:00]} Kf6 {[%emt 0:00:40]} 49. Rd5 {[%emt 0:00:00]} cxd5 {[%emt 0:01:07]} 50. c6 {[%emt 0:00:00]} Rc4 {[%emt 0:00:13]} 51. c7 {[%emt 0:00:00]} Rxc7 {[%emt 0:00:08]} 52. Kh4 {[%emt 0:00:00]} Rc4+ {[%emt 0:00:29]} 53. Kg3 {[%emt 0:00:00]} Rb3+ {[%emt 0:00:06]} 54. Kf2 {[%emt 0:00:00]} Rc2+ {[%emt 0:00:05]} 55. Ke1 {[%emt 0:00:00]} Rb1# 0-1

[Event "GER-ch Youth-ODJM 2022 B"]
[Site "Willingen"]
[Date "2022.06.09"]
[Round "7.8"]
[White "Tryfon, Konstantin"]
[Black "Tornay, Aritz"]
[Result "1-0"]
[ECO "E73"]
[WhiteElo "1634"]
[BlackElo "1765"]
[Annotator "NA RC COMBH"]
[PlyCount "80"]
[EventDate "2022.06.05"]
[EventType "swiss"]
[EventRounds "9"]
[EventCountry "GER"]
[SourceTitle "playchess.com"]
[Source "ChessBase"]
[SourceQuality "1"]
[TimeControl "40/4500+30:900+30"]

1. d4 {[%emt 0:00:00]} Nf6 {[%emt 0:00:00]} 2. c4 {[%emt 0:00:00]} g6 {[%emt 0:00:00]} 3. Nc3 {[%emt 0:00:00]} Bg7 {[%emt 0:00:00]} 4. e4 {[%emt 0:00:00]} d6 {[%emt 0:00:00]} 5. Be2 {[%emt 0:00:00]} O-O {[%emt 0:00:00]} 6. Be3 {[%emt 0:00:00]} e5 {[%emt 0:00:00]} 7. d5 {[%emt 0:00:00]} Na6 {[%emt 0:00:00]} 8. g4 {[%emt 0:00:00]} Nc5 {[%emt 0:00:00]} 9. f3 {[%emt 0:00:00]} c6 {[%emt 0:00:00]} 10. h4 {[%emt 0:00:00]} cxd5 {[%emt 0:00:00]} 11. cxd5 {[%emt 0:00:00]} a6 {[%emt 0:00:00]} 12. g5 {[%emt 0:00:00]} Nh5 {[%emt 0:00:00]} 13. Qd2 {[%emt 0:00:00]} b5 {[%emt 0:00:52]} 14. b4 {[%emt 0:00:00]} Nd7 {[%emt 0:13:37]} 15. Rc1 {[%emt 0:08:46]} Nb6 {[%emt 0:07:55]} 16. Nd1 {[%emt 0:10:21]} Bd7 {[%emt 0:11:32]} 17. Bf2 {[%emt 0:07:35]} Na4 {[%emt 0:06:20]} 18. Bf1 {[%emt 0:07:04]} f5 {[%emt 0:07:43]} 19. gxf6 {[%emt 0:03:43]} Rxf6 {[%emt 0:03:33]} 20. Bh3 {[%emt 0:02:06]} Nf4 {[%emt 0:03:51]} 21. Bxd7 {[%emt 0:02:08]} Qxd7 {[%emt 0:00:02]} 22. Ne3 {[%emt 0:02:21]} Nb2 {[%emt 0:03:14]} 23. Rc3 {[%emt 0:07:40]} Na4 {[%emt 0:04:14]} 24. Rc2 {[%emt 0:04:05]} Rc8 {[%emt 0:01:16]} 25. Ne2 {[%emt 0:09:43]} Nh3 {[%emt 0:04:33]} 26. Rxh3 {[%emt 0:06:35]} Qxh3 {[%emt 0:03:28]} 27. Ng4 {[%emt 0:00:18]} Rff8 {[%emt 0:01:53]} 28. Ng1 {[%emt 0:01:20]} Qh1 {[%emt 0:00:09]} 29. Ke2 {[%emt 0:03:56]} h5 {[%emt 0:01:41]} 30. Ne3 {[%emt 0:01:16]} Bh6 {[%emt 0:01:15]} 31. Rc6 {[%emt 0:01:49]} Rfd8 {[%emt 0:03:53]} 32. Qc2 {[%emt 0:02:42]} Rxc6 {[%emt 0:06:01]} 33. dxc6 {[%emt 0:04:18]} Bxe3 {[%emt 0:00:54]} 34. c7 {[%emt 0:00:09]} Rc8 {[%emt 0:01:08]} 35. Kxe3 {[%emt 0:00:05]} Qh2 {[%emt 0:00:27]} 36. Ne2 {[%emt 0:00:20]} Qh3 {[%emt 0:01:13]} 37. Qc6 {[%emt 0:02:21]} Qe6 {[%emt 0:00:53]} 38. f4 {[%emt 0:01:46]} Qe7 {[%emt 0:01:53]} 39. fxe5 {[%emt 0:00:45]} Qxe5 40. Bg3 Qe8 1-0

[Event "GER-ch Youth-ODJM 2022 B"]
[Site "Willingen"]
[Date "2022.06.09"]
[Round "7.9"]
[White "Schilay, Maria"]
[Black "Morio, Estelle"]
[Result "0-1"]
[ECO "C47"]
[WhiteElo "1568"]
[BlackElo "1823"]
[Annotator "NA RC COMBH"]
[PlyCount "76"]
[EventDate "2022.06.05"]
[EventType "swiss"]
[EventRounds "9"]
[EventCountry "GER"]
[SourceTitle "playchess.com"]
[Source "ChessBase"]
[SourceQuality "1"]
[TimeControl "40/4500+30:900+30"]

1. e4 {[%emt 0:00:00]} e5 {[%emt 0:00:00]} 2. Nf3 {[%emt 0:00:00]} Nc6 {[%emt 0:00:00]} 3. Nc3 {[%emt 0:00:00]} Nf6 {[%emt 0:00:00]} 4. a3 {[%emt 0:00:00]} g6 {[%emt 0:00:00]} 5. d4 {[%emt 0:00:00]} exd4 {[%emt 0:00:00]} 6. Nxd4 {[%emt 0:00:00]} Bg7 {[%emt 0:00:00]} 7. Be3 {[%emt 0:00:00]} d6 {[%emt 0:00:00]} 8. h3 {[%emt 0:00:00]} O-O {[%emt 0:00:00]} 9. Be2 {[%emt 0:00:00]} Re8 {[%emt 0:00:00]} 10. Nxc6 {[%emt 0:00:00]} bxc6 {[%emt 0:00:00]} 11. Bf3 {[%emt 0:00:00]} Bb7 {[%emt 0:16:07]} 12. Qd2 {[%emt 0:01:59]} a5 {[%emt 0:10:13]} 13. O-O {[%emt 0:13:47]} Nd7 {[%emt 0:17:03]} 14. Bd4 {[%emt 0:06:44]} Bxd4 {[%emt 0:06:45]} 15. Qxd4 {[%emt 0:00:26]} c5 {[%emt 0:03:39]} 16. Qd1 {[%emt 0:02:10]} Ba6 {[%emt 0:01:25]} 17. Re1 {[%emt 0:01:16]} Ne5 {[%emt 0:01:41]} 18. b3 {[%emt 0:05:06]} c6 {[%emt 0:01:34]} 19. Re3 {[%emt 0:03:27]} Qc7 {[%emt 0:04:18]} 20. Qd2 {[%emt 0:02:49]} Rad8 {[%emt 0:01:53]} 21. Rd1 {[%emt 0:02:36]} Bb7 {[%emt 0:00:48]} 22. Qe2 {[%emt 0:10:44]} Qb6 {[%emt 0:03:33]} 23. Rd2 {[%emt 0:02:56]} Rd7 {[%emt 0:02:10]} 24. Qd1 {[%emt 0:01:12]} Red8 {[%emt 0:00:16]} 25. Be2 {[%emt 0:01:45]} f6 {[%emt 0:01:09]} 26. f4 {[%emt 0:02:09]} Nf7 {[%emt 0:00:19]} 27. e5 {[%emt 0:11:39]} c4 {[%emt 0:06:41]} 28. Kf2 {[%emt 0:02:10]} fxe5 {[%emt 0:00:11]} 29. fxe5 {[%emt 0:02:04]} Nxe5 {[%emt 0:00:11]} 30. Ne4 {[%emt 0:04:25]} Rf8+ {[%emt 0:03:26]} 31. Bf3 {[%emt 0:00:29]} Nxf3 {[%emt 0:02:23]} 32. gxf3 {[%emt 0:00:24]} d5 {[%emt 0:00:13]} 33. Ng3 {[%emt 0:05:45]} Re7 {[%emt 0:00:52]} 34. Qe1 {[%emt 0:01:16]} Rfe8 {[%emt 0:00:50]} 35. Nf1 {[%emt 0:00:54]} cxb3 {[%emt 0:00:18]} 36. cxb3 {[%emt 0:00:30]} Ba6 {[%emt 0:00:12]} 37. Kg3 {[%emt 0:01:43]} Rxe3 {[%emt 0:01:02]} 38. Nxe3 {[%emt 0:00:14]} Qxe3 {[%emt 0:00:23]} 0-1

[Event "GER-ch Youth-ODJM 2022 B"]
[Site "Willingen"]
[Date "2022.06.09"]
[Round "7.10"]
[White "Götz, Timon"]
[Black "Mehner, Lorenz"]
[Result "0-1"]
[ECO "A34"]
[WhiteElo "1558"]
[BlackElo "1609"]
[Annotator "NA RC COMBH"]
[PlyCount "50"]
[EventDate "2022.06.05"]
[EventType "swiss"]
[EventRounds "9"]
[EventCountry "GER"]
[SourceTitle "playchess.com"]
[Source "ChessBase"]
[SourceQuality "1"]
[TimeControl "40/4500+30:900+30"]

1. c4 {[%emt 0:00:00]} c5 {[%emt 0:00:00]} 2. g3 {[%emt 0:00:00]} Nf6 {[%emt 0:00:00]} 3. Bg2 {[%emt 0:00:00]} d5 4. cxd5 {[%emt 0:00:00]} Nxd5 {[%emt 0:00:00]} 5. Nc3 {[%emt 0:00:00]} Nc7 {[%emt 0:00:00]} 6. Nf3 {[%emt 0:00:00]} Nc6 {[%emt 0:00:00]} 7. b3 {[%emt 0:00:00]} e5 {[%emt 0:00:00]} 8. Bb2 {[%emt 0:00:00]} f6 {[%emt 0:00:00]} 9. O-O {[%emt 0:00:00]} Be7 {[%emt 0:00:00]} 10. a3 {[%emt 0:00:00]} O-O {[%emt 0:00:00]} 11. d3 {[%emt 0:00:00]} Bd7 {[%emt 0:00:00]} 12. Rc1 {[%emt 0:00:00]} Rc8 {[%emt 0:00:00]} 13. e3 {[%emt 0:00:00]} Bf5 {[%emt 0:00:00]} 14. Ne1 {[%emt 0:01:42]} Qd7 {[%emt 0:02:57]} 15. Ne4 {[%emt 0:01:53]} Ne6 {[%emt 0:02:22]} 16. Qc2 {[%emt 0:03:45]} Rfd8 {[%emt 0:03:52]} 17. Rd1 {[%emt 0:00:49]} b6 {[%emt 0:11:13]} 18. f4 {[%emt 0:04:04]} exf4 {[%emt 0:05:04]} 19. gxf4 {[%emt 0:02:40]} Na5 {[%emt 0:05:40]} 20. Nf3 {[%emt 0:05:08]} Qb5 {[%emt 0:02:08]} 21. Nfd2 {[%emt 0:14:06]} Qxd3 {[%emt 0:01:22]} 22. Qxd3 {[%emt 0:03:06]} Rxd3 {[%emt 0:00:14]} 23. b4 {[%emt 0:00:10]} cxb4 {[%emt 0:02:16]} 24. axb4 {[%emt 0:00:07]} Bxb4 {[%emt 0:00:48]} 25. Rf2 {[%emt 0:03:57]} Rcd8 {[%emt 0:02:28]} 0-1

[Event "GER-ch Youth-ODJM 2022 B"]
[Site "Willingen"]
[Date "2022.06.09"]
[Round "7.11"]
[White "Andrade, Ruben"]
[Black "Birkenheier, Nicolas"]
[Result "0-1"]
[ECO "C54"]
[WhiteElo "1694"]
[BlackElo "1350"]
[Annotator "NA RC COMBH"]
[PlyCount "64"]
[EventDate "2022.06.05"]
[EventType "swiss"]
[EventRounds "9"]
[EventCountry "GER"]
[SourceTitle "playchess.com"]
[Source "ChessBase"]
[SourceQuality "1"]
[TimeControl "40/4500+30:900+30"]

1. e4 {[%emt 0:00:00]} e5 {[%emt 0:00:00]} 2. Nf3 {[%emt 0:00:00]} Nc6 {[%emt 0:00:00]} 3. Bc4 {[%emt 0:00:00]} Bc5 {[%emt 0:00:00]} 4. c3 {[%emt 0:00:00]} Nf6 {[%emt 0:00:00]} 5. d4 {[%emt 0:00:00]} exd4 {[%emt 0:00:00]} 6. cxd4 {[%emt 0:00:00]} Bb4+ {[%emt 0:00:00]} 7. Nc3 {[%emt 0:00:00]} Nxe4 {[%emt 0:00:00]} 8. O-O {[%emt 0:00:00]} Bxc3 {[%emt 0:00:00]} 9. d5 {[%emt 0:00:00]} Ne5 {[%emt 0:00:00]} 10. bxc3 {[%emt 0:00:00]} Nxc4 {[%emt 0:00:00]} 11. Qd4 {[%emt 0:00:00]} O-O {[%emt 0:00:00]} 12. Qxe4 {[%emt 0:00:00]} Nd6 {[%emt 0:00:00]} 13. Qd3 {[%emt 0:00:00]} b6 {[%emt 0:00:00]} 14. Ng5 {[%emt 0:00:00]} f5 {[%emt 0:00:00]} 15. h4 {[%emt 0:04:16]} h6 {[%emt 0:03:42]} 16. Nf3 {[%emt 0:00:10]} Bb7 {[%emt 0:06:05]} 17. Bb2 {[%emt 0:15:46]} Qf6 {[%emt 0:15:11]} 18. Rab1 {[%emt 0:12:49]} Qf7 {[%emt 0:03:12]} 19. c4 {[%emt 0:02:56]} Rad8 {[%emt 0:13:56]} 20. Ne5 {[%emt 0:06:30]} Qh5 {[%emt 0:03:29]} 21. Qd4 {[%emt 0:02:11]} Rf6 {[%emt 0:04:36]} 22. Qf4 {[%emt 0:18:03]} Rff8 {[%emt 0:08:02]} 23. Rfe1 {[%emt 0:03:28]} Bc8 {[%emt 0:10:37]} 24. f3 {[%emt 0:07:42]} Ne8 {[%emt 0:05:49]} 25. Nd3 {[%emt 0:03:20]} Nf6 {[%emt 0:04:33]} 26. Qg3 {[%emt 0:06:39]} Rde8 {[%emt 0:02:37]} 27. Nf4 {[%emt 0:02:24]} Qf7 {[%emt 0:00:24]} 28. Ng6 {[%emt 0:02:02]} Nh5 {[%emt 0:01:00]} 29. Qxc7 {[%emt 0:01:09]} Qxg6 {[%emt 0:00:32]} 30. Rxe8 {[%emt 0:00:31]} Rxe8 {[%emt 0:00:38]} 31. Kf2 {[%emt 0:00:23]} f4 {[%emt 0:01:07]} 32. Be5 {[%emt 0:00:36]} Qxb1 0-1

[Event "GER-ch Youth-ODJM 2022 B"]
[Site "Willingen"]
[Date "2022.06.09"]
[Round "7.12"]
[White "Ermert, Karl Hans Ragnar"]
[Black "Schwarz, David"]
[Result "1-0"]
[ECO "C77"]
[WhiteElo "1662"]
[BlackElo "1244"]
[Annotator "NA RC COMBH"]
[PlyCount "81"]
[EventDate "2022.06.05"]
[EventType "swiss"]
[EventRounds "9"]
[EventCountry "GER"]
[SourceTitle "playchess.com"]
[Source "ChessBase"]
[SourceQuality "1"]
[TimeControl "40/4500+30:900+30"]

1. e4 {[%emt 0:00:00]} e5 {[%emt 0:00:00]} 2. Nf3 {[%emt 0:00:00]} Nc6 {[%emt 0:00:00]} 3. Bb5 {[%emt 0:00:00]} a6 {[%emt 0:00:00]} 4. Ba4 {[%emt 0:00:00]} Nf6 {[%emt 0:00:00]} 5. d3 {[%emt 0:00:00]} Bc5 {[%emt 0:00:00]} 6. O-O {[%emt 0:00:00]} O-O {[%emt 0:00:00]} 7. Bxc6 {[%emt 0:00:00]} bxc6 {[%emt 0:00:00]} 8. Nxe5 {[%emt 0:00:00]} d5 {[%emt 0:00:00]} 9. Nd2 {[%emt 0:16:30]} Re8 {[%emt 0:00:00]} 10. Nef3 {[%emt 0:00:16]} dxe4 {[%emt 0:00:42]} 11. dxe4 {[%emt 0:00:49]} Nxe4 {[%emt 0:00:41]} 12. Nxe4 {[%emt 0:00:17]} Qxd1 {[%emt 0:00:06]} 13. Rxd1 {[%emt 0:00:06]} Rxe4 {[%emt 0:00:05]} 14. Rd8+ {[%emt 0:00:25]} Bf8 {[%emt 0:00:05]} 15. Be3 {[%emt 0:00:41]} Bb7 {[%emt 0:00:55]} 16. Rad1 {[%emt 0:00:44]} Re8 {[%emt 0:01:02]} 17. Rxa8 {[%emt 0:06:11]} Bxa8 {[%emt 0:02:00]} 18. Bf4 {[%emt 0:01:17]} Bd6 {[%emt 0:08:43]} 19. Bxd6 {[%emt 0:02:09]} cxd6 {[%emt 0:00:05]} 20. Rxd6 {[%emt 0:00:39]} g6 {[%emt 0:03:01]} 21. Kf1 {[%emt 0:01:05]} Kg7 {[%emt 0:04:02]} 22. Rd7 {[%emt 0:06:19]} Rb8 {[%emt 0:00:15]} 23. b3 {[%emt 0:00:17]} Kf6 {[%emt 0:07:28]} 24. Rc7 {[%emt 0:11:33]} h6 {[%emt 0:15:08]} 25. c4 {[%emt 0:03:51]} Bb7 {[%emt 0:06:57]} 26. Ke2 {[%emt 0:16:24]} Re8+ {[%emt 0:00:52]} 27. Kd3 {[%emt 0:00:15]} Re7 {[%emt 0:00:07]} 28. Rxe7 {[%emt 0:00:37]} Kxe7 {[%emt 0:00:04]} 29. Kd4 {[%emt 0:00:21]} Kd6 {[%emt 0:01:22]} 30. b4 {[%emt 0:01:56]} Bc8 {[%emt 0:02:30]} 31. Ne5 {[%emt 0:01:47]} Be6 {[%emt 0:00:48]} 32. a4 {[%emt 0:04:05]} g5 {[%emt 0:01:42]} 33. Nd3 {[%emt 0:01:16]} Bd7 {[%emt 0:02:05]} 34. Nc5 {[%emt 0:00:26]} Bc8 {[%emt 0:02:19]} 35. Ne4+ {[%emt 0:01:19]} Kc7 {[%emt 0:00:22]} 36. Kc5 {[%emt 0:00:41]} f5 {[%emt 0:00:45]} 37. Nd6 {[%emt 0:01:05]} Bd7 {[%emt 0:00:44]} 38. Nf7 {[%emt 0:02:27]} f4 {[%emt 0:01:01]} 39. Nxh6 {[%emt 0:01:26]} g4 {[%emt 0:00:06]} 40. Nf7 {[%emt 0:00:47]} Bf5 {[%emt 0:02:37]} 41. Ne5 1-0